[Event "*** Titled Tuesday Blitz"]
[Site "Chess.com"]
[Date "2020.11.03"]
[Round "6"]
[White "Indianlad"]
[Black "KuzubovYuriy"]
[Result "0-1"]
[WhiteElo "2941"]
[BlackElo "2842"]
[TimeControl "180+1"]
[EndTime "11:09:37 PST"]
[Termination "KuzubovYuriy won by resignation"]

1. b3 {[%clk 0:03:00.2]} 1... d5 {[%clk 0:02:56.9]} 2. Bb2 {[%clk 0:03:00.5]}
2... c5 {[%clk 0:02:56.1]} 3. e3 {[%clk 0:02:59.9]} 3... e6 {[%clk 0:02:54.8]}
4. Nf3 {[%clk 0:02:58.2]} 4... Nc6 {[%clk 0:02:54.1]} 5. g3 {[%clk 0:02:55.5]}
5... Nf6 {[%clk 0:02:52.1]} 6. Bg2 {[%clk 0:02:55.3]} 6... Bd6 {[%clk
0:02:50.5]} 7. O-O {[%clk 0:02:54.7]} 7... e5 {[%clk 0:02:39.2]} 8. d3 {[%clk
0:02:52.5]} 8... O-O {[%clk 0:02:37.8]} 9. h3 {[%clk 0:02:46.5]} 9... Re8 {[%clk
0:02:35]} 10. Nc3 {[%clk 0:02:45.9]} 10... h6 {[%clk 0:02:33]} 11. Nd2 {[%clk
0:02:41.6]} 11... Bf8 {[%clk 0:02:28.9]} 12. Ne2 {[%clk 0:02:41.6]} 12... b6
{[%clk 0:02:25]} 13. Kh2 {[%clk 0:02:41.8]} 13... Bb7 {[%clk 0:02:23.4]} 14. a3
{[%clk 0:02:42.3]} 14... Qd7 {[%clk 0:02:22.7]} 15. g4 {[%clk 0:02:41.3]} 15...
Rad8 {[%clk 0:01:56.1]} 16. Ng3 {[%clk 0:02:41.1]} 16... Nh7 {[%clk 0:01:50.8]}
17. Kh1 {[%clk 0:02:36.5]} 17... g6 {[%clk 0:01:49.3]} 18. f4 {[%clk 0:01:47]}
18... exf4 {[%clk 0:01:46.5]} 19. exf4 {[%clk 0:01:47.2]} 19... Re3 {[%clk
0:01:36.9]} 20. Rf3 {[%clk 0:01:42.8]} 20... Rde8 {[%clk 0:01:32.3]} 21. Rxe3
{[%clk 0:01:41.1]} 21... Rxe3 {[%clk 0:01:32.3]} 22. Ndf1 {[%clk 0:01:41.8]}
22... Re8 {[%clk 0:01:31]} 23. Qf3 {[%clk 0:01:41.8]} 23... d4 {[%clk
0:01:27.2]} 24. Qf2 {[%clk 0:01:35.2]} 24... Ne7 {[%clk 0:01:23.6]} 25. Nd2
{[%clk 0:01:33.1]} 25... Bxg2+ {[%clk 0:01:22.3]} 26. Qxg2 {[%clk 0:01:28.4]}
26... Nd5 {[%clk 0:01:23.2]} 27. Qf2 {[%clk 0:01:26.6]} 27... Bd6 {[%clk
0:01:00.3]} 28. f5 {[%clk 0:01:21.5]} 28... Bxg3 {[%clk 0:01:00.2]} 29. Qxg3
{[%clk 0:01:21.6]} 29... Re3 {[%clk 0:00:59.7]} 30. Qb8+ {[%clk 0:00:57.4]}
30... Kg7 {[%clk 0:00:59.7]} 31. Rf1 {[%clk 0:00:49.1]} 31... Rxh3+ {[%clk
0:00:55.9]} 32. Kg2 {[%clk 0:00:49.7]} 32... Ng5 {[%clk 0:00:55.3]} 33. Ne4
{[%clk 0:00:48.5]} 33... Ne3+ {[%clk 0:00:52.7]} 34. Kg1 {[%clk 0:00:49.1]}
34... Nxe4 {[%clk 0:00:41.3]} 35. dxe4 {[%clk 0:00:49.6]} 35... Nxf1 {[%clk
0:00:40]} 36. Kxf1 {[%clk 0:00:43.6]} 36... Re3 {[%clk 0:00:37.1]} 37. Bc1
{[%clk 0:00:41.4]} 37... Qb5+ {[%clk 0:00:30.2]} 0-1

[Event "*** Titled Tuesday Blitz"]
[Site "Chess.com"]
[Date "2020.11.03"]
[Round "6"]
[White "Neftegor"]
[Black "alexsergeyev"]
[Result "0-1"]
[WhiteElo "2442"]
[BlackElo "2339"]
[TimeControl "180+1"]
[EndTime "11:09:38 PST"]
[Termination "alexsergeyev won by resignation"]

1. d4 {[%clk 0:03:00.9]} 1... d5 {[%clk 0:02:59.3]} 2. c4 {[%clk 0:03:00.6]}
2... c6 {[%clk 0:02:59.6]} 3. Nc3 {[%clk 0:03:00.6]} 3... Nf6 {[%clk 0:02:59.7]}
4. e3 {[%clk 0:03:00.9]} 4... g6 {[%clk 0:02:59.1]} 5. Nf3 {[%clk 0:03:00.7]}
5... Bg7 {[%clk 0:02:59.2]} 6. Be2 {[%clk 0:03:00.9]} 6... O-O {[%clk 0:02:59]}
7. O-O {[%clk 0:03:00.6]} 7... b6 {[%clk 0:02:58]} 8. b3 {[%clk 0:02:58.2]} 8...
Bb7 {[%clk 0:02:57.3]} 9. Bb2 {[%clk 0:02:58.2]} 9... Nbd7 {[%clk 0:02:54.1]}
10. Qc2 {[%clk 0:02:58.1]} 10... Rc8 {[%clk 0:02:52.2]} 11. e4 {[%clk
0:02:57.5]} 11... dxe4 {[%clk 0:02:50.2]} 12. Nxe4 {[%clk 0:02:57.1]} 12... Nxe4
{[%clk 0:02:47]} 13. Qxe4 {[%clk 0:02:56.5]} 13... Re8 {[%clk 0:02:38.6]} 14.
Rad1 {[%clk 0:02:52.1]} 14... Qc7 {[%clk 0:02:37.2]} 15. Qh4 {[%clk 0:02:47.2]}
15... c5 {[%clk 0:02:29.2]} 16. Bc1 {[%clk 0:02:39]} 16... Bxf3 {[%clk
0:02:20.6]} 17. Bxf3 {[%clk 0:02:37.6]} 17... cxd4 {[%clk 0:02:20.4]} 18. Rfe1
{[%clk 0:02:30]} 18... e5 {[%clk 0:02:13.1]} 19. Qg3 {[%clk 0:02:23.9]} 19...
Nf6 {[%clk 0:01:56.8]} 20. Bg5 {[%clk 0:02:14.8]} 20... h6 {[%clk 0:01:34.2]}
21. Bxf6 {[%clk 0:02:14.8]} 21... Bxf6 {[%clk 0:01:33.7]} 22. Bd5 {[%clk
0:02:14.8]} 22... Kg7 {[%clk 0:01:33.1]} 23. Qf3 {[%clk 0:02:06.7]} 23... h5
{[%clk 0:01:28.5]} 24. Re4 {[%clk 0:02:04]} 24... Red8 {[%clk 0:01:19.6]} 25. g4
{[%clk 0:02:00.4]} 25... hxg4 {[%clk 0:01:16.1]} 26. Rxg4 {[%clk 0:02:00.4]}
26... Rh8 {[%clk 0:01:09.8]} 27. Kh1 {[%clk 0:01:54.3]} 27... Rh5 {[%clk
0:01:07.7]} 28. Rdg1 {[%clk 0:01:53.7]} 28... Rch8 {[%clk 0:01:02.9]} 29. R1g2
{[%clk 0:01:53.2]} 29... e4 {[%clk 0:01:01.5]} 30. Qg3 {[%clk 0:01:46.8]} 30...
Qxg3 {[%clk 0:00:55.7]} 31. R4xg3 {[%clk 0:01:46.6]} 31... Be5 {[%clk
0:00:53.9]} 32. Bxe4 {[%clk 0:01:40.7]} 32... Bxg3 {[%clk 0:00:52.5]} 33. fxg3
{[%clk 0:01:41]} 33... Re5 {[%clk 0:00:50.8]} 34. Bd3 {[%clk 0:01:20.2]} 34...
Re1+ {[%clk 0:00:49.8]} 35. Rg1 {[%clk 0:01:20.4]} 35... Rxg1+ {[%clk
0:00:49.3]} 36. Kxg1 {[%clk 0:01:20.6]} 36... Re8 {[%clk 0:00:49.2]} 37. Kf2
{[%clk 0:01:20.7]} 37... Re3 {[%clk 0:00:48.3]} 38. Be2 {[%clk 0:01:20.6]} 38...
f5 {[%clk 0:00:45.9]} 39. b4 {[%clk 0:01:11.4]} 39... Ra3 {[%clk 0:00:43.3]} 40.
Ke1 {[%clk 0:01:05.8]} 40... Rxa2 {[%clk 0:00:40.6]} 41. Kd1 {[%clk 0:01:06]}
41... Kf6 {[%clk 0:00:39.9]} 42. c5 {[%clk 0:01:06]} 42... bxc5 {[%clk
0:00:39.1]} 43. bxc5 {[%clk 0:01:06.2]} 43... Ke5 {[%clk 0:00:38.8]} 44. Bf3
{[%clk 0:01:04.4]} 44... Rxh2 {[%clk 0:00:36.7]} 45. Bb7 {[%clk 0:01:00.1]}
45... a5 {[%clk 0:00:33.5]} 0-1

[Event "*** Titled Tuesday Blitz"]
[Site "Chess.com"]
[Date "2020.11.03"]
[Round "6"]
[White "Pertinhez76"]
[Black "Maxim_e2e4"]
[Result "0-1"]
[WhiteElo "2137"]
[BlackElo "2373"]
[TimeControl "180+1"]
[EndTime "11:09:40 PST"]
[Termination "Maxim_e2e4 won on time"]

1. d4 {[%clk 0:01:37]} 1... Nf6 {[%clk 0:02:53.4]} 2. Bf4 {[%clk 0:01:33.3]}
2... c5 {[%clk 0:02:48.8]} 3. e3 {[%clk 0:01:32.7]} 3... g6 {[%clk 0:02:33.1]}
4. Nf3 {[%clk 0:01:29.6]} 4... Bg7 {[%clk 0:02:32.7]} 5. c3 {[%clk 0:01:29.6]}
5... O-O {[%clk 0:02:28.7]} 6. Nbd2 {[%clk 0:01:29.5]} 6... d6 {[%clk
0:02:28.2]} 7. Be2 {[%clk 0:01:29.6]} 7... Nh5 {[%clk 0:02:23.2]} 8. Bg3 {[%clk
0:01:28.9]} 8... Qb6 {[%clk 0:02:19.3]} 9. Rb1 {[%clk 0:01:27.4]} 9... cxd4
{[%clk 0:02:13.6]} 10. cxd4 {[%clk 0:01:24.1]} 10... Bf5 {[%clk 0:02:09.5]} 11.
e4 {[%clk 0:01:14.6]} 11... Bd7 {[%clk 0:02:09.2]} 12. a3 {[%clk 0:00:55.7]}
12... Nc6 {[%clk 0:02:06.8]} 13. Nc4 {[%clk 0:00:54.4]} 13... Qd8 {[%clk
0:02:06.1]} 14. Ne3 {[%clk 0:00:51.1]} 14... Nxg3 {[%clk 0:01:56.4]} 15. hxg3
{[%clk 0:00:50.6]} 15... e5 {[%clk 0:01:56.4]} 16. d5 {[%clk 0:00:47.6]} 16...
Nd4 {[%clk 0:01:56.4]} 17. Kf1 {[%clk 0:00:40.6]} 17... Rc8 {[%clk 0:01:50.2]}
18. Bd3 {[%clk 0:00:35.2]} 18... f5 {[%clk 0:01:39.8]} 19. exf5 {[%clk
0:00:30.6]} 19... Nxf5 {[%clk 0:01:39.3]} 20. Nxf5 {[%clk 0:00:30.2]} 20... gxf5
{[%clk 0:01:39.2]} 21. Nh4 {[%clk 0:00:26.2]} 21... e4 {[%clk 0:01:38.9]} 22.
Be2 {[%clk 0:00:24.3]} 22... Qg5 {[%clk 0:01:31.4]} 23. Kg1 {[%clk 0:00:20]}
23... f4 {[%clk 0:01:28.3]} 24. gxf4 {[%clk 0:00:17.5]} 24... Qxf4 {[%clk
0:01:29.2]} 25. Qe1 {[%clk 0:00:15.7]} 25... e3 {[%clk 0:01:26.2]} 26. f3 {[%clk
0:00:15.3]} 26... Qg5 {[%clk 0:01:11.9]} 27. Bd3 {[%clk 0:00:11]} 27... Bd4
{[%clk 0:01:06.4]} 28. Qe2 {[%clk 0:00:09.1]} 28... Rf4 {[%clk 0:00:58.6]} 29.
Bxh7+ {[%clk 0:00:06.1]} 29... Kxh7 {[%clk 0:00:57.3]} 30. Nf5+ {[%clk
0:00:05.4]} 30... Kg8 {[%clk 0:00:52.2]} 31. Nxd6 {[%clk 0:00:04.7]} 31... Rc2
{[%clk 0:00:48.7]} 32. Qxc2 {[%clk 0:00:02.4]} 32... e2+ {[%clk 0:00:48.9]} 0-1

[Event "*** Titled Tuesday Blitz"]
[Site "Chess.com"]
[Date "2020.11.03"]
[Round "6"]
[White "ethylalcohol"]
[Black "gumimis"]
[Result "0-1"]
[WhiteElo "2082"]
[BlackElo "2244"]
[TimeControl "180+1"]
[EndTime "11:09:41 PST"]
[Termination "gumimis won on time"]

1. d4 {[%clk 0:03:00.9]} 1... Nf6 {[%clk 0:02:59.3]} 2. Bf4 {[%clk 0:03:00.4]}
2... g6 {[%clk 0:02:59.1]} 3. Nf3 {[%clk 0:03:00.1]} 3... Bg7 {[%clk 0:02:59.4]}
4. Nc3 {[%clk 0:02:59.9]} 4... O-O {[%clk 0:02:59.3]} 5. Qd2 {[%clk 0:03:00]}
5... d6 {[%clk 0:02:59.4]} 6. Bh6 {[%clk 0:02:59.9]} 6... Nbd7 {[%clk
0:02:55.6]} 7. O-O-O {[%clk 0:02:54.1]} 7... c5 {[%clk 0:02:52.3]} 8. dxc5
{[%clk 0:02:38.8]} 8... Nxc5 {[%clk 0:02:51.7]} 9. Bxg7 {[%clk 0:02:21.3]} 9...
Kxg7 {[%clk 0:02:51.3]} 10. Qd4 {[%clk 0:02:21.8]} 10... Qa5 {[%clk 0:02:17]}
11. e4 {[%clk 0:01:58.3]} 11... Be6 {[%clk 0:02:12.7]} 12. a3 {[%clk 0:00:55.1]}
12... Rac8 {[%clk 0:02:05.6]} 13. e5 {[%clk 0:00:34.3]} 13... dxe5 {[%clk
0:02:01.3]} 14. Qxe5 {[%clk 0:00:34.4]} 14... Kg8 {[%clk 0:01:09.1]} 15. Be2
{[%clk 0:00:33.5]} 15... Ng4 {[%clk 0:01:00.7]} 16. Qg3 {[%clk 0:00:31.7]} 16...
Na4 {[%clk 0:00:47.7]} 17. Nxa4 {[%clk 0:00:24.4]} 17... Qxa4 {[%clk 0:00:48.1]}
18. Nd4 {[%clk 0:00:24.7]} 18... Rfd8 {[%clk 0:00:36.7]} 19. Bxg4 {[%clk
0:00:24]} 19... Rxd4 {[%clk 0:00:26.7]} 20. c3 {[%clk 0:00:01.8]} 20... Rxg4
{[%clk 0:00:22.2]} 0-1

[Event "*** Titled Tuesday Blitz"]
[Site "Chess.com"]
[Date "2020.11.03"]
[Round "6"]
[White "PetrolulSah"]
[Black "Kotofeyca"]
[Result "0-1"]
[WhiteElo "2183"]
[BlackElo "2374"]
[TimeControl "180+1"]
[EndTime "11:09:43 PST"]
[Termination "Kotofeyca won by resignation"]

1. d4 {[%clk 0:02:57.1]} 1... d5 {[%clk 0:02:59.5]} 2. Nf3 {[%clk 0:02:57.2]}
2... c6 {[%clk 0:03:00.4]} 3. g3 {[%clk 0:02:57.4]} 3... Bg4 {[%clk 0:02:59.8]}
4. Bg2 {[%clk 0:02:55.1]} 4... Nd7 {[%clk 0:03:00.2]} 5. O-O {[%clk 0:02:55.2]}
5... e6 {[%clk 0:03:00.6]} 6. c4 {[%clk 0:02:55]} 6... Ngf6 {[%clk 0:02:59.7]}
7. Nc3 {[%clk 0:02:53.9]} 7... Bd6 {[%clk 0:02:59.7]} 8. Bf4 {[%clk 0:02:53.4]}
8... Bxf4 {[%clk 0:02:57.9]} 9. gxf4 {[%clk 0:02:53.8]} 9... O-O {[%clk
0:02:50.8]} 10. Ne5 {[%clk 0:02:52.8]} 10... Bh5 {[%clk 0:02:50.7]} 11. Qc2
{[%clk 0:02:48.9]} 11... Rc8 {[%clk 0:02:42.4]} 12. e3 {[%clk 0:02:48.3]} 12...
Nb6 {[%clk 0:02:41]} 13. c5 {[%clk 0:02:47.7]} 13... Nbd7 {[%clk 0:02:41]} 14.
b4 {[%clk 0:02:47.5]} 14... Nxe5 {[%clk 0:02:39.2]} 15. fxe5 {[%clk 0:02:37.9]}
15... Bg6 {[%clk 0:02:28.3]} 16. Qe2 {[%clk 0:02:34.7]} 16... Ne4 {[%clk
0:02:27.8]} 17. Nxe4 {[%clk 0:02:29.8]} 17... Bxe4 {[%clk 0:02:28.7]} 18. f3
{[%clk 0:02:14.3]} 18... Bg6 {[%clk 0:02:26.8]} 19. b5 {[%clk 0:02:08.2]} 19...
f6 {[%clk 0:02:18.5]} 20. f4 {[%clk 0:02:00.8]} 20... b6 {[%clk 0:02:12.9]} 21.
Rac1 {[%clk 0:01:56.6]} 21... bxc5 {[%clk 0:01:59.2]} 22. Rxc5 {[%clk
0:01:55.5]} 22... cxb5 {[%clk 0:01:58.8]} 23. Qxb5 {[%clk 0:01:54.7]} 23... Qb6
{[%clk 0:01:47.3]} 24. Qd7 {[%clk 0:01:33.3]} 24... Rxc5 {[%clk 0:01:35.6]} 25.
dxc5 {[%clk 0:01:31.6]} 25... Qxc5 {[%clk 0:01:35.6]} 26. Qxe6+ {[%clk
0:01:25.7]} 26... Bf7 {[%clk 0:01:35.3]} 27. Qd6 {[%clk 0:01:24.6]} 27... Qxe3+
{[%clk 0:01:34]} 28. Kh1 {[%clk 0:01:25]} 28... d4 {[%clk 0:01:06.6]} 29. exf6
{[%clk 0:01:20.7]} 29... d3 {[%clk 0:00:59.2]} 30. fxg7 {[%clk 0:01:18.9]} 30...
Kxg7 {[%clk 0:01:00.1]} 31. Qe5+ {[%clk 0:01:18.5]} 31... Qxe5 {[%clk
0:00:59.5]} 32. fxe5 {[%clk 0:01:18.5]} 32... Bh5 {[%clk 0:00:54.8]} 33. Rg1
{[%clk 0:01:11.4]} 33... Kh6 {[%clk 0:00:43]} 34. Be4 {[%clk 0:00:46.2]} 34...
d2 {[%clk 0:00:40.4]} 0-1

[Event "*** Titled Tuesday Blitz"]
[Site "Chess.com"]
[Date "2020.11.03"]
[Round "6"]
[White "AnishOnYoutube"]
[Black "Promacherr"]
[Result "1-0"]
[WhiteElo "2978"]
[BlackElo "2707"]
[TimeControl "180+1"]
[EndTime "11:09:48 PST"]
[Termination "AnishOnYoutube won by resignation"]

1. e4 {[%clk 0:03:00.9]} 1... e6 {[%clk 0:03:00.3]} 2. d4 {[%clk 0:03:00.4]}
2... d5 {[%clk 0:03:00.7]} 3. Nc3 {[%clk 0:02:59.3]} 3... Nf6 {[%clk 0:03:00.5]}
4. e5 {[%clk 0:02:58]} 4... Nfd7 {[%clk 0:03:00.4]} 5. f4 {[%clk 0:02:58.7]}
5... c5 {[%clk 0:03:00.8]} 6. Nf3 {[%clk 0:02:59.5]} 6... Nc6 {[%clk 0:03:01.4]}
7. Be3 {[%clk 0:03:00.1]} 7... Be7 {[%clk 0:03:02]} 8. Qd2 {[%clk 0:02:57.6]}
8... O-O {[%clk 0:03:02.1]} 9. Be2 {[%clk 0:02:52.7]} 9... a6 {[%clk 0:02:56.5]}
10. O-O {[%clk 0:02:52.6]} 10... b5 {[%clk 0:02:56.6]} 11. a3 {[%clk 0:02:50.1]}
11... Qc7 {[%clk 0:02:56.4]} 12. Kh1 {[%clk 0:02:48]} 12... cxd4 {[%clk
0:02:55.2]} 13. Nxd4 {[%clk 0:02:47.1]} 13... Nxd4 {[%clk 0:02:50.8]} 14. Bxd4
{[%clk 0:02:46.9]} 14... Bc5 {[%clk 0:02:51.4]} 15. Rad1 {[%clk 0:02:34.9]}
15... Bb7 {[%clk 0:02:49.6]} 16. Qe3 {[%clk 0:02:27.5]} 16... Bxd4 {[%clk
0:02:47.2]} 17. Qxd4 {[%clk 0:02:16.6]} 17... f6 {[%clk 0:02:44.8]} 18. exf6
{[%clk 0:02:15.3]} 18... Nxf6 {[%clk 0:02:13.7]} 19. Bd3 {[%clk 0:01:59.4]}
19... Rae8 {[%clk 0:02:09.3]} 20. Rde1 {[%clk 0:01:58.2]} 20... Qd6 {[%clk
0:01:50.7]} 21. Rf3 {[%clk 0:01:53.9]} 21... Nd7 {[%clk 0:01:36.5]} 22. Ref1
{[%clk 0:01:45.9]} 22... Qc5 {[%clk 0:01:28.3]} 23. Ne2 {[%clk 0:01:40]} 23...
Qxd4 {[%clk 0:00:56.7]} 24. Nxd4 {[%clk 0:01:40.9]} 24... e5 {[%clk 0:00:52.7]}
25. fxe5 {[%clk 0:01:40.2]} 25... Rxe5 {[%clk 0:00:40.2]} 26. Bf5 {[%clk
0:01:04.7]} 26... Nf6 {[%clk 0:00:36.7]} 27. Rc3 {[%clk 0:01:04.8]} 27... Rfe8
{[%clk 0:00:31.4]} 28. Kg1 {[%clk 0:00:58.2]} 28... R8e7 {[%clk 0:00:28.8]} 29.
Bc8 {[%clk 0:00:45.8]} 29... h6 {[%clk 0:00:16.8]} 30. Nf5 {[%clk 0:00:38.5]}
30... Rf7 {[%clk 0:00:05.5]} 31. Nd6 {[%clk 0:00:38.7]} 31... d4 {[%clk
0:00:04.8]} 32. Nxf7 {[%clk 0:00:38.2]} 32... Kxf7 {[%clk 0:00:03.7]} 33. Rc7+
{[%clk 0:00:37.1]} 1-0

[Event "*** Titled Tuesday Blitz"]
[Site "Chess.com"]
[Date "2020.11.03"]
[Round "6"]
[White "chenxiaoyuer"]
[Black "DenisQ"]
[Result "1/2-1/2"]
[WhiteElo "2502"]
[BlackElo "2659"]
[TimeControl "180+1"]
[EndTime "11:09:48 PST"]
[Termination "Game drawn by repetition"]

1. e4 {[%clk 0:03:00.9]} 1... c6 {[%clk 0:02:58.1]} 2. d4 {[%clk 0:02:59.9]}
2... d5 {[%clk 0:02:59]} 3. Nd2 {[%clk 0:03:00.3]} 3... dxe4 {[%clk 0:02:58.5]}
4. Nxe4 {[%clk 0:03:01.2]} 4... Bf5 {[%clk 0:02:58.3]} 5. Ng3 {[%clk 0:03:00.7]}
5... Bg6 {[%clk 0:02:58.5]} 6. h4 {[%clk 0:03:01.6]} 6... h6 {[%clk 0:02:58.4]}
7. Nf3 {[%clk 0:03:02.2]} 7... e6 {[%clk 0:02:56.5]} 8. Ne5 {[%clk 0:03:00.6]}
8... Bh7 {[%clk 0:02:56.3]} 9. Bd3 {[%clk 0:03:01.5]} 9... Bxd3 {[%clk
0:02:55.8]} 10. Qxd3 {[%clk 0:03:02.4]} 10... Nd7 {[%clk 0:02:55.8]} 11. Bf4
{[%clk 0:02:46.8]} 11... Qa5+ {[%clk 0:02:44.8]} 12. c3 {[%clk 0:02:37.5]} 12...
Ngf6 {[%clk 0:02:43.6]} 13. Ne4 {[%clk 0:02:08]} 13... Nxe4 {[%clk 0:02:40.5]}
14. Qxe4 {[%clk 0:02:07.3]} 14... Qd5 {[%clk 0:02:40.4]} 15. f3 {[%clk
0:01:31.9]} 15... Nxe5 {[%clk 0:02:34.8]} 16. Bxe5 {[%clk 0:01:25.1]} 16...
Qxe4+ {[%clk 0:02:32.7]} 17. fxe4 {[%clk 0:01:24.9]} 17... f6 {[%clk 0:02:32.9]}
18. Bf4 {[%clk 0:01:24.4]} 18... h5 {[%clk 0:02:32.9]} 19. Ke2 {[%clk
0:01:23.1]} 19... Kd7 {[%clk 0:02:31.4]} 20. Rag1 {[%clk 0:01:12.6]} 20... Bd6
{[%clk 0:02:29]} 21. Be3 {[%clk 0:00:58.2]} 21... f5 {[%clk 0:02:19.9]} 22. e5
{[%clk 0:00:55.1]} 22... Be7 {[%clk 0:02:17.9]} 23. Rh3 {[%clk 0:00:45.3]} 23...
Rhg8 {[%clk 0:02:13.9]} 24. Rgh1 {[%clk 0:00:39]} 24... b5 {[%clk 0:02:11.1]}
25. Rg3 {[%clk 0:00:36.4]} 25... g6 {[%clk 0:02:04.8]} 26. Bg5 {[%clk
0:00:34.3]} 26... a5 {[%clk 0:01:52.1]} 27. Bxe7 {[%clk 0:00:31.6]} 27... Kxe7
{[%clk 0:01:53]} 28. Kd3 {[%clk 0:00:22]} 28... a4 {[%clk 0:01:51.6]} 29. Kc2
{[%clk 0:00:19.7]} 29... Kf7 {[%clk 0:01:49.5]} 30. Kb1 {[%clk 0:00:12.5]} 30...
Rgd8 {[%clk 0:01:47.6]} 31. Kc2 {[%clk 0:00:10.3]} 31... Rd5 {[%clk 0:01:46]}
32. Rd1 {[%clk 0:00:10.3]} 32... Rad8 {[%clk 0:01:39.9]} 33. Rgd3 {[%clk
0:00:10.1]} 33... Rg8 {[%clk 0:01:34.9]} 34. Rg3 {[%clk 0:00:09.3]} 34... Rgd8
{[%clk 0:01:32.6]} 35. Rgd3 {[%clk 0:00:09.1]} 35... Ke7 {[%clk 0:01:29.1]} 36.
b4 {[%clk 0:00:08.8]} 36... Rg8 {[%clk 0:01:21.7]} 37. Rg3 {[%clk 0:00:08.6]}
37... Kf7 {[%clk 0:01:21.9]} 38. Rg5 {[%clk 0:00:08.5]} 38... Rgd8 {[%clk
0:01:21]} 39. Rf1 {[%clk 0:00:08.4]} 39... R5d7 {[%clk 0:01:05.8]} 40. Rf4
{[%clk 0:00:07.6]} 40... Rd5 {[%clk 0:01:04.9]} 41. a3 {[%clk 0:00:07.6]} 41...
R5d7 {[%clk 0:01:04.6]} 42. g3 {[%clk 0:00:07.4]} 42... Kg7 {[%clk 0:01:01.1]}
43. Kb2 {[%clk 0:00:06]} 43... Rd5 {[%clk 0:01:01]} 44. Kc2 {[%clk 0:00:06.1]}
44... R8d7 {[%clk 0:01:00.9]} 45. Kb2 {[%clk 0:00:06.4]} 45... Rd8 {[%clk
0:01:01.3]} 46. Kc2 {[%clk 0:00:06.7]} 46... R8d7 {[%clk 0:01:01.6]} 47. Kb2
{[%clk 0:00:06.8]} 47... Rd8 {[%clk 0:01:01.9]} 1/2-1/2

[Event "*** Titled Tuesday Blitz"]
[Site "Chess.com"]
[Date "2020.11.03"]
[Round "6"]
[White "Volodar_Murzin"]
[Black "Rakesh"]
[Result "0-1"]
[WhiteElo "2600"]
[BlackElo "2476"]
[TimeControl "180+1"]
[EndTime "11:09:48 PST"]
[Termination "Rakesh won by resignation"]

1. e4 {[%clk 0:03:00.9]} 1... c5 {[%clk 0:02:40.5]} 2. Nf3 {[%clk 0:02:57.4]}
2... e6 {[%clk 0:02:40.3]} 3. g3 {[%clk 0:02:52.5]} 3... Nc6 {[%clk 0:02:39.9]}
4. Bg2 {[%clk 0:02:51.8]} 4... g6 {[%clk 0:02:40.5]} 5. O-O {[%clk 0:02:46.1]}
5... Bg7 {[%clk 0:02:40.6]} 6. Re1 {[%clk 0:02:45.5]} 6... e5 {[%clk 0:02:36.2]}
7. Na3 {[%clk 0:02:44.4]} 7... Nge7 {[%clk 0:02:35.9]} 8. d3 {[%clk 0:02:35]}
8... O-O {[%clk 0:02:35.1]} 9. c3 {[%clk 0:02:29.5]} 9... d6 {[%clk 0:02:34.4]}
10. d4 {[%clk 0:02:20.3]} 10... cxd4 {[%clk 0:02:32.5]} 11. cxd4 {[%clk
0:02:17.8]} 11... Nxd4 {[%clk 0:02:27.3]} 12. Nxd4 {[%clk 0:02:10.6]} 12... exd4
{[%clk 0:02:28.2]} 13. Bf4 {[%clk 0:02:02.4]} 13... Nc6 {[%clk 0:02:03.6]} 14.
Rc1 {[%clk 0:01:38.6]} 14... Be6 {[%clk 0:01:50.6]} 15. Nb5 {[%clk 0:01:22.1]}
15... Be5 {[%clk 0:01:47.2]} 16. Bh6 {[%clk 0:01:20.4]} 16... Re8 {[%clk
0:01:46.9]} 17. f4 {[%clk 0:01:02.3]} 17... Bf6 {[%clk 0:01:36.3]} 18. e5 {[%clk
0:00:55.9]} 18... dxe5 {[%clk 0:01:36]} 19. fxe5 {[%clk 0:00:54.5]} 19... Nxe5
{[%clk 0:01:33.9]} 20. Nc7 {[%clk 0:00:46.7]} 20... Bg4 {[%clk 0:01:27.7]} 21.
Qb3 {[%clk 0:00:39]} 21... d3 {[%clk 0:00:58]} 22. Nxe8 {[%clk 0:00:14.9]} 22...
Qxe8 {[%clk 0:00:58.3]} 23. Bd2 {[%clk 0:00:14.9]} 23... Rd8 {[%clk 0:00:57.2]}
24. Re4 {[%clk 0:00:10.3]} 24... Bf5 {[%clk 0:00:56.3]} 25. Ree1 {[%clk
0:00:07.4]} 25... Qd7 {[%clk 0:00:55.6]} 26. Qb4 {[%clk 0:00:06.7]} 26... Ng4
{[%clk 0:00:50.9]} 27. h3 {[%clk 0:00:03.8]} 27... Bd4+ {[%clk 0:00:50]} 28. Kh1
{[%clk 0:00:04.4]} 28... Nf2+ {[%clk 0:00:44.6]} 29. Kh2 {[%clk 0:00:04.8]}
29... Bxh3 {[%clk 0:00:43.3]} 30. Re7 {[%clk 0:00:04.9]} 30... Qg4 {[%clk
0:00:40.5]} 31. Re8+ {[%clk 0:00:02.6]} 31... Rxe8 {[%clk 0:00:39.4]} 0-1